[Event "Czech Open-Rapid 2022"]
[Site "Pardubice"]
[Date "2022.07.20"]
[Round "1.43"]
[White "Macek, Jaroslav"]
[Black "Zdrazil, Tomas"]
[Result "0-1"]
[ECO "E92"]
[WhiteElo "1745"]
[BlackElo "2122"]
[Annotator "TA"]
[PlyCount "64"]
[EventDate "2022.07.20"]
[EventType "swiss"]
[EventCountry "CZE"]
[SourceTitle "playchess.com"]
[Source "ChessBase"]
[SourceQuality "1"]
[TimeControl "1200+10"]

{[%evp 16,64,28,7,27,18,18,4,-1,-25,-1,-24,-29,-75,-69,-138,-150,-152,-123,-139,-136,-321,-256,-253,-134,-150,-135,-296,-288,-338,-350,-347,-303,-313,-330,-381,-348,-444,-363,-401,-283,-320,-299,-416,-413,-381,-404,-379,-382,-29988,-29989]} 1. d4 {[%emt 0:00:02]} Nf6 {[%emt 0:00:01]} 2. c4 {[%emt 0:00:02]} g6 {[%emt 0:00:02]} 3. Nc3 {[%emt 0:00:03]} Bg7 {[%emt 0:00:03]} 4. Nf3 {[%emt 0:00:04]} O-O {[%emt 0:00:03]} 5. e4 {[%emt 0:00:05]} d6 {[%emt 0:00:02]} 6. Be2 {[%emt 0:00:05]} e5 {[%emt 0:00:01]} 7. d5 {[%emt 0:00:07]} a5 {[%emt 0:00:02]} 8. O-O {[%emt 0:00:16]} Na6 {[%emt 0:00:02]} 9. a3 {[%emt 0:00:05]} Bd7 {[%emt 0:01:16] E92: King's Indian: Classical: 6 Be2 e5: 7 dxe5, 7 Be3 and Petrosian System without 7...Nbd7.} 10. Bg5 {[%emt 0:00:16]} h6 {[%emt 0:00:12]} 11. Bxf6 {[%emt 0:00:08]} Qxf6 {[%emt 0:01:06] The position is equal.} 12. Rb1 {[%emt 0:00:57] [#]} Qe7 $146 {[%emt 0:06:43]} ({Predecessor:} 12... Nc5 13. b4 axb4 14. axb4 Na4 15. Nxa4 Bxa4 16. Qd2 Bd7 17. Ra1 Qe7 18. Qb2 f5 {0-1 (37) Ardila,O (2017)-Popadic,D (2157) Chess.com INT 2020}) 13. Qd2 {[%emt 0:02:27]} a4 {[%emt 0:00:27]} 14. b4 {[%emt 0:00:37]} (14. Bd3 $11) 14... axb3 $1 $17 {[%emt 0:00:03]} 15. Rxb3 {[%emt 0:00:07]} (15. Ne1 $15) 15... Nc5 {[%emt 0:00:02]} 16. Rbb1 {[%emt 0:01:25]} Rxa3 {[%emt 0:00:07]} 17. Qc2 {[%emt 0:02:02]} Rfa8 {[%emt 0:00:49]} 18. Nb5 $2 {[%emt 0:01:23] [#]} (18. Nd2 $17) 18... Bxb5 {[%emt 0:00:32]} 19. Rxb5 {[%emt 0:01:25]} b6 {[%emt 0:04:26]} (19... Ra2 $19 20. Rb2 Rxb2 21. Qxb2 Nxe4 22. Qxb7 Ra2) 20. Nd2 {[%emt 0:03:40]} h5 {[%emt 0:01:44] Black is more active.} 21. Rfb1 $2 {[%emt 0:01:19] Now White is beyond hope.} (21. Rb2 $17) 21... Bh6 $19 {[%emt 0:00:14] Hoping for ...Bxd2.} 22. Nb3 {[%emt 0:00:30]} Ra2 {[%emt 0:00:23]} 23. Rb2 {[%emt 0:00:47]} Rxb2 {[%emt 0:00:03]} 24. Qxb2 {[%emt 0:00:17]} Nxe4 {[%emt 0:00:04]} 25. Bf3 {[%emt 0:01:06]} Ng5 {[%emt 0:00:44]} 26. Be2 {[%emt 0:00:45]} Bg7 {[%emt 0:00:06]} 27. Qc2 {[%emt 0:00:42]} Ra7 {[%emt 0:01:53]} 28. Nd2 {[%emt 0:00:10]} f5 {[%emt 0:00:18]} 29. Nf3 {[%emt 0:01:12]} Nxf3+ {[%emt 0:00:20]} 30. Bxf3 {[%emt 0:00:03]} e4 {[%emt 0:00:07]} 31. Be2 {[%emt 0:00:05]} Bd4 {[%emt 0:00:23]} 32. Kf1 $2 {[%emt 0:01:15] [#]} (32. Rb1 $19) 32... Qh4 {[%emt 0:00:13] Weighted Error Value: White=0.79/Black=0.24 (precise)} 0-1

[Event "Czech Open-Rapid 2022"]
[Site "Pardubice"]
[Date "2022.07.20"]
[Round "1.44"]
[White "Bertram, Karsten"]
[Black "Jilma, Petr"]
[Result "1-0"]
[ECO "D00"]
[WhiteElo "2062"]
[BlackElo "1413"]
[Annotator "TA"]
[PlyCount "57"]
[EventDate "2022.07.20"]
[EventType "swiss"]
[EventCountry "CZE"]
[SourceTitle "playchess.com"]
[Source "ChessBase"]
[SourceQuality "1"]
[TimeControl "1200+10"]

{[%evp 9,57,0,0,0,16,-9,0,-22,-22,-76,-81,-81,-82,-76,-71,-89,-51,-112,82,-155,39,15,27,22,122,131,155,90,91,86,293,10,507,0,461,-32,-17,-381,-374,-326,-173,-127,-75,-218,-47,-55,216,202,1366,1342]} 1. d4 {[%emt 0:00:03]} d5 {[%emt 0:00:03]} 2. Nc3 {[%emt 0:00:01]} c6 {[%emt 0:00:03]} 3. Bf4 {[%emt 0:00:02]} e6 {[%emt 0:00:10]} 4. e3 {[%emt 0:00:17]} Nf6 {[%emt 0:00:13]} 5. Bd3 {[%emt 0:00:13]} Be7 {[%emt 0:00:33]} 6. Nf3 {[%emt 0:00:04] D00: 1 d4 d5: Unusual lines.} Nbd7 {[%emt 0:00:17]} 7. Ne5 {[%emt 0:00:05]} O-O {[%emt 0:00:20]} 8. g4 {[%emt 0:00:04] The position is equal.} Nxe5 {[%emt 0:00:27]} 9. dxe5 {[%emt 0:00:05]} (9. Bxe5 $11 h6 10. a3) 9... Nd7 $17 {[%emt 0:00:16] [#]} 10. Qf3 $146 {[%emt 0:00:23]} ({Predecessor:} 10. h4 f6 11. exf6 Bxf6 12. g5 Bxc3+ 13. bxc3 Qe8 14. Bd6 e5 15. Bxf8 Nxf8 16. Rb1 {0-1 (27) Agnaieff,V (1830)-Chevalier,F (1768) Laval 2016}) 10... f6 {[%emt 0:01:07]} 11. Qh3 {[%emt 0:00:34]} g6 $1 {[%emt 0:00:27]} 12. exf6 {[%emt 0:01:22]} Nxf6 {[%emt 0:00:54][%cal Oe6e5]} 13. Qg3 {[%emt 0:00:10] [#]} (13. Bh6 $15) 13... Ne8 $2 {[%emt 0:01:30]} (13... Nxg4 $1 $17 {[%cal Oe6e5][%mdl 512] stays on course. aiming for ...e5!} 14. Bc7 (14. Qxg4 e5 $17) 14... Bh4 15. Bxd8 Bxg3 16. hxg3 Rxd8) 14. Be5 $2 {[%emt 0:00:21] White is more active.} (14. h4 $1 $16 {keeps the pressure on.}) 14... Bd6 $2 {[%emt 0:00:35]} (14... Bh4 $17 15. Qh3 Bxf2+ 16. Ke2 Qh4 17. Qxh4 Bxh4) 15. f4 {[%emt 0:00:03]} (15. h4 {is more complex.} b5 16. g5 Bxe5 17. Qxe5 Ng7 18. Ne2) 15... Bxe5 {[%emt 0:01:56]} 16. fxe5 {[%emt 0:00:02]} Qb6 {[%emt 0:01:02]} (16... c5 $11 {keeps the balance.}) 17. O-O-O $16 {[%emt 0:00:11]} Bd7 {[%emt 0:00:34]} 18. Ne2 {[%emt 0:00:48]} ({Better is} 18. h4) 18... c5 {[%emt 0:00:41]} 19. Nf4 {[%emt 0:00:46][%cal Od3g6]} Nc7 $2 {[%emt 0:01:37]} (19... c4 $16 20. Bxc4 Qc7) 20. Rhe1 $2 {[%emt 0:04:04]} (20. Qh4 $18 {[%cal Od3g6] White threatens Bxg6! and mate.} Rxf4 21. exf4) 20... Rac8 $2 {[%emt 0:00:45][%mdl 8192] [#]} (20... Na6 $11) 21. Rg1 $2 {[%emt 0:02:07]} (21. Bxg6 $1 $18 {[%mdl 512]} hxg6 22. Nxg6) 21... Bc6 $2 {[%emt 0:00:52][%mdl 8192] [#]} (21... c4 $1 $11 {and Black stays safe.} 22. Bxg6 (22. Bxc4 Ba4 $11) 22... hxg6 23. Nxg6 c3 24. bxc3 Nb5) 22. Nh5 $2 {[%emt 0:00:45]} c4 $15 {[%emt 0:01:36]} 23. Bxc4 {[%emt 0:03:30][%mdl 8192]} dxc4 $19 24. Nf6+ Rxf6 {[%emt 0:01:25]} 25. exf6 {[%emt 0:00:12] [#]} Nd5 {[%emt 0:00:27]} ({Black should try} 25... c3 $1 26. bxc3 Be8) 26. Qd6 {[%emt 0:01:22]} (26. f7+ $17 {might work better.} Kxf7 27. e4) 26... Qxe3+ $2 {[%emt 0:00:38]} (26... Re8 $19 {Hoping for ...c3.} 27. Qe5 Qxe3+ 28. Qxe3 Nxe3) 27. Kb1 $15 {[%emt 0:00:02]} Nxf6 $2 {[%emt 0:01:54][%mdl 8192]} (27... Rf8 $1 $15 {keeps the upper hand.} 28. g5 Be8) 28. Rge1 $18 {[%emt 0:00:08][%mdl 64] Deflection} Qh6 {[%emt 0:00:40]} (28... Ne8 29. Qe7 (29. Rxe3 Nxd6 30. Rxd6 Bd5 $16) 29... Rc7 30. Qxe8+ (30. Rxe3 $2 {too greedy.} Rxe7 31. Rd4 Rf7 $19) (30. Qxc7 Qxe1 31. Qxh7+ Kxh7 $17) 30... Bxe8 31. Rxe3 Kf7) 29. Qxe6+ {[%emt 0:00:06] Weighted Error Value: White=1.43/Black=1.25} 1-0

[Event "Czech Open-Rapid 2022"]
[Site "Pardubice"]
[Date "2022.07.20"]
[Round "2.1"]
[White "Korobov, Anton"]
[Black "Michelle Catherina, P."]
[Result "1-0"]
[ECO "E32"]
[WhiteElo "2692"]
[BlackElo "2141"]
[Annotator "TA"]
[PlyCount "67"]
[EventDate "2022.07.20"]
[EventType "swiss"]
[EventCountry "CZE"]
[SourceTitle "playchess.com"]
[Source "ChessBase"]
[SourceQuality "1"]
[TimeControl "1200+10"]

{[%evp 10,66,10,5,14,8,8,8,-7,-21,-23,-43,-25,-43,-28,-14,9,0,67,74,104,109,90,104,108,108,106,112,606,121,155,145,232,239,748,688,979,1039,1039,491,29996,602,29997,943,29997,139,102,0,29993,29994,29994,29995,29995,29990,29990,29991,29991,29992,29999]} 1. d4 {[%emt 0:00:02]} Nf6 {[%emt 0:00:06]} 2. c4 {[%emt 0:00:02]} e6 {[%emt 0:00:03]} 3. Nc3 {[%emt 0:00:06]} Bb4 {[%emt 0:00:03]} 4. Qc2 {[%emt 0:00:02]} O-O {[%emt 0:00:11]} 5. Bg5 {[%emt 0:00:02]} d5 {[%emt 0:00:34]} 6. e3 {[%emt 0:00:02]} h6 {[%emt 0:00:59] E32: Nimzo-Indian: Classical (4 Qc2): 4...0-0.} 7. Bh4 {[%emt 0:00:02]} c5 {[%emt 0:00:34]} 8. Rd1 $5 {[%emt 0:00:03][%mdl 4] Exploring less charted territory.} cxd4 {[%emt 0:01:03] The position is equal.} (8... g5 $5 9. Bg3 cxd4 10. exd4 Nc6 $11) 9. exd4 {[%emt 0:00:02]} Nc6 {[%emt 0:03:11]} 10. Nf3 {[%emt 0:00:02]} g5 {[%emt 0:00:57]} 11. Bg3 {[%emt 0:00:02]} Ne4 $1 {[%emt 0:00:36]} 12. Bd3 {[%emt 0:00:03]} Qa5 {[%emt 0:02:23][%csl LRa2,LRc3][%cal Rb4c3] [#]} 13. O-O $146 {[%emt 0:00:50]} ({Predecessor:} 13. Bxe4 dxe4 14. Ne5 Nxe5 15. Bxe5 f6 16. Bg3 Qxa2 17. O-O Qxc4 18. Qxe4 f5 19. Qc2 {0-1 (33) Sorgjerd,J-Lorentzen,O Norway 1998}) 13... Nxg3 {[%emt 0:02:36]} ({Black should try} 13... Bxc3 $11 14. bxc3 Nxc3) 14. fxg3 $14 {[%emt 0:00:41]} dxc4 {[%emt 0:00:24]} 15. Bxc4 {[%emt 0:00:08]} Bd7 {[%emt 0:01:07]} 16. Kh1 {[%emt 0:00:21] d5 is the strong threat. White is more active.} Rac8 {[%emt 0:02:12]} 17. d5 {[%emt 0:00:19]} Bxc3 {[%emt 0:01:47]} 18. bxc3 {[%emt 0:00:39] aiming for dxe6.} (18. Qxc3 $6 Qxc3 19. bxc3 exd5 $11) 18... Nd8 {[%emt 0:00:40][%mdl 8192] [#]} (18... Ne7 $16 19. dxe6 Bxe6 20. Bxe6 fxe6) 19. Rd4 $2 {[%emt 0:01:34]} (19. Ne5 Ba4 20. Qd3 (20. Bb3 Bxb3 21. axb3 Qxc3 $18) 20... Rxc4 21. Nxc4 Qxd5 $18) (19. Nxg5 $1 $18 {[%mdl 512] and the rest is easy.} hxg5 20. Qd2) 19... Rxc4 {[%emt 0:00:59]} 20. Rxc4 {[%emt 0:00:03][%cal Of3g5] Strongly threatening Nxg5!} Bb5 {[%emt 0:00:03] [#]} (20... exd5 $16 21. Rb4 Qa6) 21. Nxg5 $1 $18 {[%emt 0:01:11]} ({Not} 21. Rc5 b6 22. Rxb5 Qxb5 $14) 21... hxg5 $2 {[%emt 0:02:00] [#]} (21... f5 22. Rg4 h5) 22. Rg4 $1 {[%emt 0:00:03]} Bxf1 {[%emt 0:00:25]} (22... Re8 23. Rxg5+) 23. Rxg5+ Kh8 24. Qe4 {[%emt 0:00:29]} (24. Rh5+ $142 Kg7 25. Qh7+ Kf6 26. Qh6+ Ke7 27. d6+ Kd7 28. Rxa5) 24... Bd3 {[%emt 0:00:24]} (24... Bxg2+ $18 25. Kxg2 Qxd5 26. Rxd5 exd5 27. Qxd5 Kh7 28. Qe4+ Kg8) 25. Qxd3 {[%emt 0:00:41]} (25. Qh4+ $142 Bh7 26. Qh6 Qxc3 27. Qxf8+ Bg8 28. Qxg8#) 25... Qa4 {[%emt 0:00:14]} 26. c4 {[%emt 0:00:22]} (26. Qf3 $142 Qd1+ 27. Qxd1 exd5 28. Qh5#) 26... e5 {[%emt 0:00:33]} 27. h3 $2 {[%emt 0:00:49]} (27. Qf3 {mates} Qd1+ 28. Qxd1 Kh7 29. Qh5#) 27... f5 $16 {[%emt 0:00:22]} 28. g4 $40 {[%emt 0:01:51][%mdl 128] White is up to no good.} ({Don't play} 28. Rxf5 Rxf5 29. Qxf5 Qe8 $14) (28. Qf3 $16 {[%cal Rf3h5]} Qe8 29. g4 (29. Rxf5 Rxf5 30. Qxf5 e4 $11)) 28... b5 $2 {[%emt 0:00:11][%mdl 8192]} (28... Rf6 $11) 29. Qg3 {[%emt 0:00:22][%cal Rg3h4] White mates.} Rf7 {[%emt 0:00:12]} 30. Qxe5+ {[%emt 0:00:25]} Kh7 {[%emt 0:00:00]} 31. Rh5+ {[%emt 0:00:21]} Kg6 {[%emt 0:00:01]} 32. Qf4 {[%emt 0:00:15][%csl Gh5][%cal Rf4g5]} Qd1+ {[%emt 0:00:20]} 33. Kh2 {[%emt 0:00:03][%csl Gh5][%cal Rf4g5]} Rg7 {[%emt 0:00:17]} 34. Qxf5# {[%emt 0:00:07] Weighted Error Value: White=0.94/Black=1.13} 1-0

[Event "Czech Open-Rapid 2022"]
[Site "Pardubice"]
[Date "2022.07.20"]
[Round "2.2"]
[White "Jun, Rudolf"]
[Black "Donchenko, Alexander"]
[Result "0-1"]
[ECO "B13"]
[WhiteElo "2134"]
[BlackElo "2640"]
[Annotator "TA"]
[PlyCount "96"]
[EventDate "2022.07.20"]
[EventType "swiss"]
[EventCountry "CZE"]
[SourceTitle "playchess.com"]
[Source "ChessBase"]
[SourceQuality "1"]
[TimeControl "1200+10"]

{[%evp 9,96,6,25,0,25,8,13,12,20,0,0,0,19,0,0,-14,-17,0,0,-48,-52,-45,-2,-81,-68,-83,-80,-78,-76,-146,-139,-131,-58,-64,-68,-71,-71,-72,-40,-49,-53,-78,-40,-137,0,-53,0,-10,-19,-268,-189,-181,-46,-56,-1,-7,-7,-309,-210,-795,-580,-1806,-1729,-2402,-1948,-3060,-3902,-2064,-1758,-12834,-12828,-12827,-8716,-12831,-12829,-12829,-12829,-12836,-12837,-12837,-12837,-12837,-12838,-12838,-12839,-12836,-12838,-27999,-27999]} 1. e4 {[%emt 0:00:03]} c6 {[%emt 0:00:02]} 2. d4 {[%emt 0:00:09]} d5 {[%emt 0:00:01]} 3. exd5 {[%emt 0:00:29]} cxd5 {[%emt 0:00:03]} 4. Nf3 {[%emt 0:00:28]} Nc6 {[%emt 0:00:03]} 5. c3 {[%emt 0:00:24]} Bf5 {[%emt 0:00:10]} 6. Bd3 {[%emt 0:00:09] B13: Caro-Kann: Exchange Variation and Panov-Botvinnik Attack.} Bg6 {[%emt 0:00:06]} 7. O-O {[%emt 0:00:08]} e6 {[%emt 0:00:02]} 8. Bf4 {[%emt 0:00:15] The position is equal.} Nf6 {[%emt 0:00:11]} 9. Ne5 {[%emt 0:01:32]} Nxe5 {[%emt 0:00:12]} 10. Bxe5 {[%emt 0:00:13] [#]} a6 $146 {[%emt 0:00:07]} ({Predecessor:} 10... Bxd3 11. Qxd3 Be7 12. Nd2 O-O 13. Qb5 Qd7 14. a4 a6 15. Qb3 Rac8 16. h3 Rc6 17. Bxf6 Bxf6 {1-0 (73) Skrzypczynski,K (1793)-Reza,W (2247) Warsaw 2022}) 11. h3 {[%emt 0:00:29]} Be7 {[%emt 0:00:14]} 12. Na3 {[%emt 0:00:13]} Bxa3 {[%emt 0:00:50]} 13. Bxg6 {[%emt 0:00:28]} Bxb2 {[%emt 0:00:45]} 14. Rb1 {[%emt 0:00:50]} (14. Bxf7+ $11 Kxf7 15. Rb1) 14... hxg6 $15 {[%emt 0:02:35]} (14... Bxc3 $2 15. Bxf7+ Kxf7 16. Rxb7+ Kg8 17. Qd3 $18) 15. Rxb2 {[%emt 0:00:11]} Qd7 {[%emt 0:04:22]} 16. Qb3 {[%emt 0:01:07]} (16. Qf3 $11 {keeps the balance.}) 16... b5 $17 {[%emt 0:00:22]} 17. a4 {[%emt 0:01:43] [#]} O-O $1 {[%emt 0:03:09]} ({But not} 17... bxa4 18. Qa3 Rd8 19. Rfb1 $16) 18. axb5 {[%emt 0:00:03]} axb5 {[%emt 0:00:04]} 19. Bxf6 {[%emt 0:00:54]} ({Better is} 19. Rfb1) 19... gxf6 {[%emt 0:00:02]} 20. Qxb5 {[%emt 0:00:03]} Qc7 {[%emt 0:00:02]} (20... Qxb5 $17 21. Rxb5 Rfc8) 21. Qd3 {[%emt 0:01:03]} Rfc8 {[%emt 0:00:17]} 22. Rc1 {[%emt 0:00:58]} Ra3 {[%emt 0:00:06][%cal Ra3c3]} 23. Rbc2 {[%emt 0:00:04]} Kg7 {[%emt 0:00:04]} (23... Qf4 $5 {[%cal Rc8c3]} 24. g3 Qh6 $15) 24. Qf3 {[%emt 0:00:30]} Qc4 {[%emt 0:00:10]} 25. h4 {[%emt 0:00:18]} Qa4 {[%emt 0:01:34] Black is more active.} (25... Rh8 $5 {[%cal Rh8h4]} 26. Qf4 e5 $15) 26. h5 {[%emt 0:02:26]} (26. Qe3 $15) 26... g5 {[%emt 0:00:51]} (26... Rh8 $17 27. g4 Qxd4 28. hxg6 Kxg6 29. Qf5+ exf5 30. gxf5+ Kxf5 31. cxd4 Rd3) 27. Qd3 {[%emt 0:01:12]} ({Of course not} 27. h6+ Kg6 28. Qe3 Ra1 $17) ({White should try} 27. g4 $11) 27... Ra2 {[%emt 0:00:52]} 28. Rxa2 {[%emt 0:01:25]} Qxa2 $11 {[%emt 0:00:02][%mdl 4096] Endgame KQR-KQR} 29. f4 $2 {[%emt 0:00:02]} (29. g4 $11) 29... Qb2 {[%emt 0:00:59]} 30. Qe3 {[%emt 0:02:02] [#]} g4 {[%emt 0:00:38]} (30... gxf4 $1 $19 31. Qxf4 f5) 31. f5 $1 $15 {[%emt 0:02:09]} exf5 {[%emt 0:00:07]} (31... e5 $1 $15 32. dxe5 d4) 32. Rf1 $1 $11 {[%emt 0:01:15]} Qc2 $36 {[%emt 0:04:16][%mdl 2048] Black is pushing.} 33. Rf2 $2 {[%emt 0:02:06][%mdl 8192] White is now going downhill.} (33. Qf4 $1 $11 {and White stays safe.}) 33... Rxc3 {[%emt 0:00:30]} 34. h6+ $2 {[%emt 0:00:16]} (34. Rxc2 Rxe3 35. Rc5) 34... Kg6 $19 {[%emt 0:00:08] ( -> ...Qd1+)} 35. Rxc2 {[%emt 0:00:11]} Rxe3 {[%emt 0:00:02] KR-KR} 36. Rc5 {[%emt 0:00:10]} Kxh6 {[%emt 0:00:10]} 37. Rxd5 {[%emt 0:00:02]} Kg6 {[%emt 0:00:04]} 38. Kf2 {[%emt 0:00:07]} f4 {[%emt 0:00:03] ...Rd3 is the strong threat.} 39. Rd8 {[%emt 0:00:18]} Kf5 {[%emt 0:00:11]} 40. d5 {[%emt 0:00:05]} Rd3 {[%emt 0:00:05]} 41. Ke2 {[%emt 0:00:15]} f3+ {[%emt 0:00:46]} 42. gxf3 {[%emt 0:00:11]} Rxf3 {[%emt 0:00:02]} 43. Rd7 {[%emt 0:00:12]} Ke5 {[%emt 0:00:33]} 44. d6 {[%emt 0:00:10]} Ke6 {[%emt 0:00:06]} 45. Rd8 {[%emt 0:00:01]} f5 {[%emt 0:00:10]} 46. d7 {[%emt 0:00:19]} Ke7 {[%emt 0:00:03]} 47. Rf8 {[%emt 0:00:02]} Kxd7 {[%emt 0:00:02]} 48. Rxf7+ {[%emt 0:00:02]} Ke6 {[%emt 0:00:02] Weighted Error Value: White=1.07/Black=0.34} 0-1

[Event "Czech Open-Rapid 2022"]
[Site "Pardubice"]
[Date "2022.07.20"]
[Round "2.3"]
[White "Harsha Bharathakoti"]
[Black "Jares, Michal"]
[Result "1-0"]
[ECO "A25"]
[WhiteElo "2547"]
[BlackElo "2208"]
[Annotator "TA"]
[PlyCount "97"]
[EventDate "2022.07.20"]
[EventType "swiss"]
[EventCountry "CZE"]
[SourceTitle "playchess.com"]
[Source "ChessBase"]
[SourceQuality "1"]
[TimeControl "1200+10"]

{[%evp 11,97,10,12,5,20,7,17,9,5,15,13,13,17,6,27,17,39,31,52,50,93,116,147,114,156,158,211,176,166,171,248,220,250,253,250,236,277,270,326,196,188,213,599,571,724,563,771,743,934,925,809,684,803,819,924,915,942,929,962,984,952,958,930,949,981,833,1193,1159,1200,1196,2034,1833,2063,1808,29989,29990,29990,29991,29991,29990,29991,29992,29995,29993,29993,29994,29995,29996]} 1. c4 {[%emt 0:00:02]} e5 {[%emt 0:00:03]} 2. g3 {[%emt 0:00:04]} Nc6 {[%emt 0:00:09]} 3. Bg2 {[%emt 0:00:03]} g6 {[%emt 0:00:03]} 4. Nc3 {[%emt 0:00:14]} Bg7 {[%emt 0:00:02]} 5. e3 {[%emt 0:00:01]} d6 {[%emt 0:00:19]} 6. Nge2 {[%emt 0:00:02]} Nge7 {[%emt 0:00:19]} 7. b3 {[%emt 0:03:21] A25: English Opening vs King's Indian with ...Nc6 but without early d3.} O-O {[%emt 0:00:24]} 8. Bb2 {[%emt 0:00:01]} Be6 {[%emt 0:01:52]} 9. O-O {[%emt 0:01:02] The position is equal.} d5 {[%emt 0:00:41]} 10. d3 {[%emt 0:00:36]} Qd7 {[%emt 0:01:36]} 11. cxd5 {[%emt 0:00:11]} Nxd5 {[%emt 0:00:07]} 12. Ne4 {[%emt 0:00:01][%cal Bc3e4,Be4c5,Bc5a6,Ba6c5][%mdl 32]} Qe7 {[%emt 0:01:54] Against Nc5} 13. Rc1 {[%emt 0:00:03]} Rad8 {[%emt 0:00:20]} 14. a3 {[%emt 0:00:29] [#] Inhibits Ndb4.} Nb6 $146 {[%emt 0:00:30]} ({Predecessor:} 14... a5 15. Qc2 Bc8 16. Rfe1 Kh8 17. Nc5 f5 18. Qc4 Qd6 19. Qb5 b6 20. Ne4 fxe4 21. Rxc6 {1-0 (32) Zak,U (2353)-Peker,O (2404) Israel 2002}) 15. Nc5 {[%emt 0:00:14]} Bc8 {[%emt 0:00:04] White stays focused until the end.} 16. b4 {[%emt 0:00:27]} Qd6 {[%emt 0:01:42]} 17. Qc2 {[%emt 0:01:46]} a6 {[%emt 0:00:57]} 18. Rfd1 {[%emt 0:00:23] White is more active.} h5 {[%emt 0:01:44]} (18... Nd5 $16 19. Nxa6 Nd4 20. exd4 bxa6) 19. h4 {[%emt 0:02:20]} Nd5 {[%emt 0:04:07]} 20. Nxa6 {[%emt 0:00:15]} Nf6 {[%emt 0:01:39]} (20... Nd4 $142 21. exd4 bxa6) 21. Nc5 $18 {[%emt 0:00:13]} ({Don't take} 21. Bxc6 $6 bxc6 22. Nc5 Qe7 $16) 21... Ng4 {[%emt 0:00:05]} 22. Nc3 {[%emt 0:00:16][%cal Be2c3,Bc3b5,Bb5c7][%mdl 32]} Bh6 {[%emt 0:00:53][%cal Og4e3]} 23. Re1 {[%emt 0:03:29]} f5 {[%emt 0:01:27]} 24. Nb5 {[%emt 0:00:24]} Qf6 {[%emt 0:02:21]} 25. Nxb7 {[%emt 0:01:29]} Bxb7 {[%emt 0:00:03]} 26. Bxc6 {[%emt 0:00:01] Really sharp!} Ba6 {[%emt 0:00:05] [#]} (26... Bxc6 27. Qxc6 Qxc6 28. Rxc6 Rxd3) 27. Nxc7 {[%emt 0:00:28]} Bxd3 {[%emt 0:00:53]} 28. Qb3+ {[%emt 0:00:02]} Kh7 {[%emt 0:00:03]} 29. Nd5 {[%emt 0:00:12]} Rxd5 {[%emt 0:00:02]} 30. Bxd5 {[%emt 0:00:11]} Be4 {[%emt 0:00:04]} 31. Rc7+ {[%emt 0:00:31]} Kh8 {[%emt 0:00:02]} 32. Rc6 {[%emt 0:01:06][%cal Bc7c6,Bc6e6,Be6e5][%mdl 32]} Qd8 {[%emt 0:00:20]} 33. Rd1 {[%emt 0:00:03]} Qe8 {[%emt 0:00:18]} 34. Re6 {[%emt 0:00:11]} Qb5 {[%emt 0:00:04]} 35. Bc4 {[%emt 0:02:19]} Qb7 {[%emt 0:00:10]} 36. Bxe5+ {[%emt 0:00:11]} Nxe5 {[%emt 0:00:29]} 37. Rxe5 {[%emt 0:00:01]} Bf3 {[%emt 0:00:15]} 38. Rd2 {[%emt 0:01:07]} Bh1 {[%emt 0:00:07]} 39. Bd5 {[%emt 0:00:01]} Qc7 {[%emt 0:00:01]} 40. Re6 {[%emt 0:00:30]} Qc1+ {[%emt 0:00:16]} 41. Rd1 {[%emt 0:00:02]} Bxd5 {[%emt 0:00:04]} 42. Qxd5 {[%emt 0:00:02]} Qc2 {[%emt 0:00:22]} 43. Rxg6 {[%emt 0:00:05] White mates.} Bg7 {[%emt 0:00:02]} 44. Rg5 {[%emt 0:00:07]} Qe2 {[%emt 0:00:02]} 45. Rd2 {[%emt 0:00:06]} Qe1+ {[%emt 0:00:02]} 46. Kg2 {[%emt 0:00:01]} Kh7 {[%emt 0:00:12]} 47. Rxh5+ {[%emt 0:00:08]} Kg6 {[%emt 0:00:02]} 48. Rg5+ {[%emt 0:00:01]} Kh7 {[%emt 0:00:01]} 49. Qd7 {Weighted Error Value: White=0.22 (precise) /Black=0.46} 1-0